bitfinex/quotes_SOLUSD_20250722
["timestamp","ask_amount","ask_price","bid_price","bid_amount"]
[1753188606994,0.66,200.95,200.91,40.93735304]
[1753188607187,0.66,200.95,200.93,7.12769859]
[1753188607404,16.78468397,200.95,200.93,7.12769859]
[1753188607586,0.66,200.94,200.93,7.12769859]
[1753188607785,74.07478122,201.5,200.93,7.12769859]
[1753188607786,10.0,201.0,200.93,8.10538435]
[1753188608010,10.0,201.0,200.99,7.12769859]
[1753188608505,17.44468397,201.03,200.99,7.12769859]
[1753188608506,16.78468397,201.02,200.99,7.12769859]
[1753188608711,10.0,201.0,200.99,7.12769859]
[1753188608914,0.66,201.02,200.99,7.12769859]
[1753188609207,27.44468397,201.01,201.0,7.12769859]
[1753188609510,27.44468397,201.01,200.99,7.12769859]
[1753188609806,0.66,201.0,200.95,4.97636227]
[1753188609979,0.66,201.0,200.99,7.12769859]
[1753188610345,16.78468397,200.97,200.96,7.12769859]
[1753188611206,16.78468397,200.97,200.94,4.97652598]
[1753188611207,10.0,200.96,200.95,7.12769859]
[1753188611993,26.78468397,200.96,200.95,7.12769859]
[1753188612300,27.44468397,200.96,200.94,7.12769859]
[1753188612500,0.66,200.95,200.94,7.12769859]
[1753188613803,26.78468397,200.94,200.91,7.12769859]
[1753188614110,16.78468397,200.88,200.85,7.12769859]
[1753188614412,10.66,200.87,200.85,7.12769859]
[1753188616103,10.0,200.87,200.85,7.12769859]
[1753188616405,0.66,200.86,200.85,7.12769859]
[1753188616996,10.0,200.87,200.85,7.12769859]
[1753188617404,10.0,200.87,200.85,7.15769859]
[1753188617615,10.68,200.87,200.85,7.15769859]
[1753188618106,17.46468397,200.86,200.85,0.03]
[1753188619306,17.96408704,200.86,200.85,0.03]
[1753188619507,22.94267909,200.86,200.85,0.03]
[1753188619815,17.96408704,200.86,200.85,0.03]
[1753188620205,16.78468397,200.86,200.85,7.15769859]
[1753188621311,17.46468397,200.86,200.85,7.15769859]
[1753188621986,16.78468397,200.86,200.85,7.15769859]
[1753188622184,17.46468397,200.86,200.85,7.15769859]
[1753188622386,22.94267909,200.86,200.85,0.03]
[1753188622583,10.0,200.87,200.85,7.15769859]
[1753188622825,26.78468397,200.87,200.86,7.12769859]
[1753188623229,16.78468397,200.86,200.85,0.03]
[1753188623525,17.96408704,200.86,200.85,0.03]
[1753188624128,17.46468397,200.86,200.85,0.03]
[1753188624428,10.0,200.9,200.85,25.06363834]
[1753188624583,1.6047,200.92,200.89,7.12769859]
[1753188624788,16.78468397,200.92,200.91,7.12769859]
[1753188625199,17.46468397,200.92,200.9,7.12769859]
[1753188625511,10.0,200.9,200.86,5.47645125]
[1753188625887,10.68,200.95,200.87,0.48]
[1753188626091,10.0,200.95,200.9,26.0]
[1753188626307,10.0,200.95,200.91,0.4977353]
[1753188626599,10.0,200.95,200.94,7.12769859]
[1753188626802,16.78468397,200.96,200.94,7.12769859]
[1753188627695,16.78468397,200.96,200.95,7.12769859]
[1753188627889,16.78468397,200.93,200.92,7.12769859]
[1753188629019,10.0,200.94,200.92,7.12769859]
[1753188629233,10.68,200.94,200.93,7.12769859]
[1753188629557,10.0,200.89,200.88,4.97804775]
[1753188629861,10.0,200.89,200.88,7.12769859]
[1753188630355,10.0,200.91,200.88,7.12769859]
[1753188630531,10.0,200.91,200.9,7.12769859]
[1753188630716,21.76087009,200.96,200.9,7.12769859]
[1753188630717,10.0,200.92,200.9,7.12769859]
[1753188630916,10.0,200.94,200.91,7.12769859]
[1753188631240,10.68,200.94,200.93,7.12769859]
[1753188631422,10.0,200.94,200.93,7.12769859]
[1753188631629,10.0,200.97,200.94,4.97660993]
[1753188631933,26.78468397,200.97,200.96,7.12769859]
[1753188633211,26.78468397,200.97,200.93,4.97680632]
[1753188633212,27.46468397,200.97,200.95,7.12769859]
[1753188633414,0.68,200.96,200.95,7.12769859]
[1753188633833,26.78468397,200.97,200.95,7.12769859]
[1753188634042,26.78468397,200.97,200.96,7.12769859]
[1753188634218,16.78468397,201.0,200.96,7.12769859]
[1753188634418,16.78468397,200.98,200.96,7.12769859]
[1753188634744,16.78468397,200.98,200.92,4.97710531]
[1753188634745,10.0,200.97,200.92,4.97710531]
[1753188634930,10.0,200.97,200.96,7.12769859]
[1753188635425,26.78468397,200.99,200.96,7.12769859]
[1753188635618,10.0,200.99,200.98,7.12769859]
[1753188636683,26.78468397,201.01,200.98,12.10327661]
[1753188636886,26.78468397,201.01,201.0,7.12769859]
[1753188637761,10.0,201.01,201.0,12.10282296]
[1753188638079,10.06,201.03,201.0,12.10282296]
[1753188638235,0.06,201.03,201.02,7.12769859]
[1753188638437,10.06,201.03,201.02,7.12769859]
[1753188638665,0.06,201.03,201.0,4.97512437]
[1753188638836,10.06,201.03,201.02,7.12769859]
[1753188640040,10.74,201.03,201.02,7.12769859]
[1753188640237,0.74,201.03,201.02,7.12769859]
[1753188640464,0.2,201.09,201.04,26.0]
[1753188640641,0.2,201.09,201.08,7.12769859]
[1753188641161,0.2,201.09,201.08,7.60769859]
[1753188641473,0.06,201.12,201.08,14.73539718]
[1753188641648,0.06,201.12,201.09,8.10498836]
[1753188642039,0.06,201.12,201.09,13.07788606]
[1753188642967,0.06,201.12,201.11,26.0]
[1753188643277,0.06,201.17,201.11,40.25539718]
[1753188643574,0.06,201.17,201.16,7.12769859]
[1753188644053,0.06,201.17,201.16,12.09886582]
[1753188645645,0.06,201.17,201.15,4.97138132]
[1753188645850,0.06,201.17,201.16,7.12769859]
[1753188646062,0.06,201.17,201.14,0.49716615]
[1753188646272,0.06,201.17,201.16,7.12769859]
[1753188646461,7.8106,201.21,201.16,7.12769859]
[1753188646462,0.06,201.21,201.16,7.60769859]
[1753188646655,0.06,201.21,201.2,7.12769859]
[1753188647176,0.06,201.21,201.2,8.10471648]
[1753188648054,0.2,201.25,201.24,14.25539718]
[1753188648348,0.2,201.25,201.24,48.0368896]
[1753188648767,0.2,201.25,201.24,55.16458819]
[1753188648944,0.2,201.25,201.24,55.64458819]
[1753188649569,16.78468397,201.34,201.27,26.0]
[1753188649763,8.79940307,201.35,201.33,7.12769859]
[1753188649940,17.46468397,201.34,201.28,35.94]
[1753188650139,17.46468397,201.34,201.33,7.12769859]
[1753188650562,22.9308175,201.34,201.27,26.0]
[1753188650748,17.46468397,201.34,201.31,7.12769859]
[1753188650959,16.78468397,201.32,201.25,0.4968944]
[1753188651176,16.78468397,201.32,201.31,7.12769859]
[1753188651362,0.68,201.32,201.31,7.12769859]
[1753188652975,2.64882016,201.39,201.31,43.04769859]
[1753188653280,0.06,201.39,201.38,7.12769859]
[1753188654480,0.06,201.39,201.38,12.093435]
[1753188654981,0.06,201.39,201.38,7.12769859]
[1753188655182,0.74,201.39,201.38,7.12769859]
[1753188655561,0.06,201.39,201.38,7.12769859]
[1753188656896,0.74,201.39,201.37,7.12769859]
[1753188657046,16.78468397,201.38,201.35,7.12769859]
[1753188657248,0.68,201.37,201.35,7.12769859]
[1753188657488,17.46468397,201.36,201.35,7.12769859]
[1753188658163,17.46468397,201.36,201.34,7.12769859]
[1753188658472,17.46468397,201.36,201.29,7.12769859]
[1753188658473,30.05826191,201.35,201.29,7.12769859]
[1753188658776,7.80769859,201.34,201.28,7.12769859]
[1753188658968,16.78468397,201.32,201.28,7.12769859]
[1753188659200,16.78468397,201.32,201.24,4.96917944]
[1753188659201,16.78468397,201.36,201.31,7.12769859]
[1753188659356,6.1529,201.37,201.35,7.12769859]
[1753188659560,0.74,201.39,201.36,7.12769859]
[1753188659779,0.74,201.39,201.38,7.12769859]
[1753188659955,16.78468397,201.38,201.37,7.12769859]
[1753188660165,16.78468397,201.37,201.35,7.12769859]
[1753188660465,17.46468397,201.38,201.31,35.9]
[1753188660466,0.68,201.36,201.31,35.9]
[1753188660671,0.68,201.36,201.35,7.12769859]
[1753188660885,21.75044458,201.38,201.35,7.12769859]
[1753188661258,1.17940307,201.37,201.34,7.12769859]
[1753188661455,0.68,201.36,201.32,7.12769859]
[1753188661655,21.75044458,201.38,201.26,35.9]
[1753188661656,0.68,201.35,201.27,0.49684503]
[1753188661875,17.46468397,201.35,201.34,7.12769859]
[1753188662074,0.68,201.35,201.34,7.12769859]
[1753188662361,16.78468397,201.37,201.34,7.12769859]
[1753188662689,16.78468397,201.36,201.31,4.96746311]
[1753188662858,17.46468397,201.36,201.35,7.12769859]
[1753188663283,60.47238256,201.36,201.21,0.48]
[1753188663581,16.78468397,201.34,201.28,7.12769859]
[1753188663761,16.78468397,201.32,201.28,7.12769859]
[1753188663962,17.46468397,201.31,201.3,7.12769859]
[1753188664162,16.78468397,201.3,201.28,7.12769859]
[1753188664365,16.78468397,201.26,201.2,0.03]
[1753188664565,16.78468397,201.26,201.23,7.12769859]
[1753188664566,17.46468397,201.26,201.23,7.12769859]
[1753188664768,0.68,201.25,201.23,7.12769859]
[1753188664975,86.29178563,201.24,201.2,0.03]
[1753188665191,16.78468397,201.22,201.2,0.03]
[1753188665365,16.78468397,201.22,201.2,7.15769859]
[1753188665568,0.68,201.27,201.21,7.12769859]
[1753188665770,28.04790307,201.29,201.21,0.49699319]
[1753188665771,16.78468397,201.26,201.21,0.49699319]
[1753188666095,16.78468397,201.26,201.25,7.12769859]
[1753188666593,1.5485,201.29,201.25,7.12769859]
[1753188666807,16.78468397,201.28,201.27,7.12769859]
[1753188667099,0.68,201.29,201.27,7.12769859]
[1753188667300,16.78468397,201.3,201.27,7.12769859]
[1753188667600,17.46468397,201.3,201.28,7.12769859]
[1753188667800,1.17940307,201.29,201.24,7.12769859]
[1753188668001,16.78468397,201.28,201.26,7.12769859]
[1753188668194,6.0744,201.31,201.27,7.12769859]
[1753188668375,16.78468397,201.3,201.28,7.12769859]
[1753188668582,17.46468397,201.3,201.28,7.12769859]
[1753188669088,17.46468397,201.3,201.28,12.09582199]
[1753188669488,43.04769859,201.34,201.29,7.12769859]
[1753188669489,0.68,201.34,201.29,7.12769859]
[1753188669809,1.504,201.35,201.33,7.12769859]
[1753188669974,7.0871,201.37,201.34,7.12769859]
[1753188670175,17.96408704,201.36,201.28,4.9681234]
[1753188670375,17.96408704,201.36,201.32,7.12769859]
[1753188670597,17.96408704,201.36,201.34,4.96672295]
[1753188670598,17.46468397,201.36,201.34,4.96672295]
[1753188670795,16.78468397,201.36,201.35,7.12769859]
[1753188671611,0.74,201.39,201.35,7.12769859]
[1753188671788,0.06,201.39,201.38,7.12769859]
[1753188672808,1e-08,201.39,201.38,12.573435]
[1753188673103,1e-08,201.39,201.38,38.573435]
[1753188673495,1e-08,201.39,201.38,38.093435]
[1753188673707,1e-08,201.39,201.38,38.573435]
[1753188674009,0.06,201.48,201.42,26.0]
[1753188674183,6.2989,201.58,201.42,26.0]
[1753188674184,6.2989,201.58,201.5,26.0]
[1753188674499,0.1,201.6,201.57,7.12769859]
[1753188674691,0.1,201.6,201.59,12.08826211]
[1753188675105,0.1,201.6,201.59,19.6959607]
[1753188675308,1e-08,201.6,201.59,26.53080422]
[1753188676397,0.68,201.76,201.62,26.0]
[1753188676586,16.78468397,201.72,201.7,10.54512035]
[1753188676804,0.68,201.71,201.63,62.51595794]
[1753188677008,16.78468397,201.7,201.63,67.47547782]
[1753188677332,0.49940307,201.74,201.63,67.47547782]
[1753188677333,0.68,201.73,201.69,10.54512035]
[1753188677621,6.8561,201.77,201.72,10.54512035]
[1753188677808,0.68,201.76,201.72,10.54512035]
[1753188677982,13.63196309,201.8,201.75,10.54512035]
[1753188677983,3.08684274,201.8,201.75,10.54512035]
[1753188678185,3.08684274,201.8,201.69,0.4958104]
[1753188678186,0.68,201.79,201.77,10.54512035]
[1753188678388,0.68,201.79,201.78,10.54512035]
[1753188678889,1.5296,201.81,201.78,10.54512035]
[1753188678890,16.78468397,201.8,201.78,10.54512035]
[1753188679102,16.78468397,201.8,201.77,10.54512035]
[1753188679301,0.68,201.79,201.77,10.54512035]
[1753188679501,16.78468397,201.8,201.78,10.54512035]
[1753188679703,17.46468397,201.8,201.79,10.54512035]
[1753188679917,17.46468397,201.8,201.77,10.54512035]
[1753188680088,0.68,201.79,201.75,10.54512035]
[1753188680294,16.78468397,201.77,201.75,10.54512035]
[1753188680602,16.78468397,201.77,201.69,30.4958104]
[1753188680603,16.78468397,201.75,201.73,10.54512035]
[1753188680803,16.78468397,201.75,201.69,30.0]
[1753188680804,16.78468397,201.73,201.69,30.0]
[1753188681011,16.78468397,201.71,201.62,36.45598254]
[1753188681205,16.78468397,201.71,201.68,10.54512035]
[1753188681398,16.78468397,201.68,201.64,40.54512035]
[1753188681704,16.78468397,201.68,201.61,4.96003601]
[1753188681705,1.17940307,201.73,201.67,10.54512035]
[1753188681911,16.78468397,201.72,201.62,0.48]
[1753188682087,11.72452342,201.71,201.65,10.54512035]
[1753188682406,16.78468397,201.66,201.61,10.54512035]
[1753188682599,28.50920739,201.65,201.6,0.03]
[1753188682806,16.78468397,201.62,201.6,0.03]
[1753188683217,1.17940307,201.61,201.6,0.03]
[1753188683406,28.50920739,201.61,201.6,0.03]
[1753188683711,28.50920739,201.61,201.55,0.03]
[1753188683712,64.58920739,201.61,201.55,0.03]
[1753188683899,64.58920739,201.61,201.55,10.57512035]
[1753188683900,17.46468397,201.6,201.55,10.57512035]
[1753188684095,0.68,201.59,201.55,0.03]
[1753188684315,17.46468397,201.59,201.58,10.54512035]
[1753188684511,17.46468397,201.59,201.55,0.03]
[1753188684512,16.78468397,201.58,201.55,0.03]
[1753188684685,17.46468397,201.58,201.55,0.03]
[1753188684885,5.64105571,201.57,201.55,0.03]
[1753188685086,16.78468397,201.56,201.55,0.03]
[1753188685285,17.46468397,201.56,201.55,0.03]
[1753188685509,0.68,201.56,201.55,0.03]
[1753188685714,0.68,201.59,201.55,10.57512035]
[1753188685921,0.68,201.59,201.57,10.54512035]
[1753188686209,5.63983468,201.62,201.58,10.54512035]
[1753188686516,5.63983468,201.62,201.55,0.03]
[1753188686517,0.49940307,201.64,201.6,10.54512035]
[1753188686690,0.68,201.68,201.63,10.54512035]
[1753188686892,0.68,201.68,201.66,10.54512035]
[1753188687100,4.95859572,201.67,201.64,10.54512035]
[1753188687295,0.49940307,201.72,201.66,10.54512035]
[1753188687504,6.2862,201.82,201.6,10.54512035]
[1753188687505,0.68,201.74,201.69,10.54512035]
[1753188687696,0.68,201.74,201.64,0.51]
[1753188687697,0.68,201.74,201.7,10.54512035]
[1753188688001,0.68,201.73,201.7,10.54512035]
[1753188688296,5.45603256,201.75,201.61,26.0]
[1753188688297,16.78468397,201.71,201.68,10.54512035]
[1753188688484,16.78468397,201.71,201.63,26.0]
[1753188688485,0.68,201.7,201.67,10.54512035]
[1753188688684,0.68,201.7,201.63,26.0]
[1753188688685,0.68,201.69,201.63,10.54512035]
[1753188688887,4.95859572,201.67,201.63,10.54512035]
[1753188689110,0.68,201.66,201.62,10.54512035]
[1753188689317,1.17940307,201.66,201.62,10.54512035]
[1753188689515,0.68,201.66,201.63,10.54512035]
[1753188689890,0.68,201.66,201.64,10.54512035]
[1753188690198,21.742848,201.69,201.65,10.54512035]
[1753188690416,36.2,201.71,201.67,10.54512035]
[1753188690417,5.45725865,201.71,201.67,10.54512035]
[1753188690592,0.06,201.81,201.7,31.0902407]
[1753188690787,0.06,201.81,201.8,10.54512035]
[1753188690993,11.16711894,201.87,201.83,26.0]
[1753188691211,11.16711894,201.87,201.86,10.54512035]
[1753188691690,11.16711894,201.87,201.76,0.49563838]
[1753188691691,16.800802,201.87,201.76,0.49563838]
[1753188691893,11.84711894,201.87,201.86,10.54512035]
[1753188692105,11.16711894,201.87,201.86,10.54512035]
[1753188692704,11.16711894,201.87,201.81,26.49551558]
[1753188693019,11.16711894,201.87,201.86,10.54512035]
[1753188693231,10.54512035,201.94,201.86,10.54512035]
[1753188693232,1.48,202.0,201.86,0.39]
[1753188693414,1.48,202.0,201.88,10.54512035]
[1753188693415,0.2,201.97,201.88,10.54512035]
[1753188693721,0.2,201.97,201.96,10.54512035]
[1753188693921,0.2,201.97,201.89,0.49531923]
[1753188693922,5.63147553,201.96,201.9,10.54512035]
[1753188694096,16.78468397,201.95,201.9,10.54512035]
[1753188694292,16.78468397,201.93,201.88,10.54512035]
[1753188694491,16.78468397,201.93,201.8,36.62]
[1753188694492,16.78468397,201.91,201.85,10.54512035]
[1753188694717,16.78468397,201.91,201.88,10.54512035]
[1753188695024,0.68,201.9,201.87,10.54512035]
[1753188695199,0.68,201.9,201.86,10.54512035]
[1753188695200,5.63298881,201.9,201.86,10.54512035]
[1753188695520,0.68,201.89,201.85,10.54512035]
[1753188696322,27.32980432,201.86,201.79,10.54512035]
[1753188696640,4.95265182,201.92,201.85,10.54512035]
[1753188696801,0.88,201.97,201.91,10.54512035]
[1753188696998,5.83133459,201.97,201.93,10.54512035]
[1753188697403,0.88,201.97,201.93,10.54512035]
[1753188697609,0.68,201.96,201.92,10.54512035]
[1753188698100,5.15129709,201.97,201.95,10.54512035]
[1753188698101,0.2,201.97,201.95,10.54512035]
[1753188698822,0.2,201.97,201.96,10.54512035]
[1753188701032,0.61,202.0,201.99,26.0]
[1753188701199,0.61,202.0,201.99,89.27605484]
[1753188701400,0.61,202.0,201.99,0.49507401]
[1753188701615,0.61,202.0,201.99,11.04019436]
[1753188702023,0.61,202.0,201.99,47.76019436]
[1753188702409,0.61,202.0,201.96,0.49514755]
[1753188702609,0.61,202.0,201.99,10.54512035]
[1753188703011,0.61,202.0,201.96,36.74]
[1753188703204,0.61,202.0,201.99,10.54512035]
[1753188703731,1.29,202.0,201.96,10.54512035]
[1753188703901,1.29,202.0,201.9,0.4952947]
[1753188703902,0.68,201.99,201.95,10.54512035]
[1753188704106,0.68,201.99,201.96,10.54512035]
[1753188704324,0.61,202.0,201.98,10.54512035]
[1753188704530,0.61,202.0,201.99,10.54512035]
[1753188705257,0.61,202.0,201.99,15.49586048]
[1753188705472,0.61,202.0,201.99,15.99093449]
[1753188706577,2.58312181,202.14,202.02,26.0]
[1753188706761,0.2,202.18,202.13,10.54512035]
[1753188706931,0.2,202.18,202.17,10.54512035]
[1753188707236,0.2,202.18,202.17,15.49145264]
[1753188707434,0.2,202.18,202.15,4.94659879]
[1753188707648,0.2,202.18,202.17,10.54512035]
[1753188708156,0.2,202.18,202.16,0.49465769]
[1753188708355,0.2,202.18,202.17,10.54512035]
[1753188708555,0.2,202.18,202.16,10.54512035]
[1753188708744,0.2,202.18,202.17,10.54512035]
[1753188710430,5.82608764,202.18,202.12,0.49475559]
[1753188710632,5.82608764,202.18,202.08,26.0]
[1753188710633,5.82608764,202.18,202.13,0.49473111]
[1753188710829,0.88,202.18,202.16,10.54512035]
[1753188711032,0.2,202.18,202.15,10.54512035]
[1753188711258,0.2,202.18,202.06,12.37245857]
[1753188711259,0.68,202.17,202.12,10.54512035]
[1753188711444,0.68,202.17,202.06,36.9]
[1753188711445,0.68,202.16,202.07,0.49487801]
[1753188711638,16.78468397,202.15,202.07,0.49487801]
[1753188711844,0.68,202.14,202.08,10.54512035]
[1753188712372,0.68,202.14,202.03,0.49497599]
[1753188712663,11.22512035,202.14,202.08,10.54512035]
[1753188712965,0.68,202.14,202.08,10.54512035]
[1753188713164,0.68,202.14,202.09,10.54512035]
[1753188713368,0.68,202.13,202.08,10.54512035]
[1753188713566,18.53703073,202.17,202.03,5.44470407]
[1753188713567,7.35220991,202.18,202.12,10.54512035]
[1753188713739,7.35220991,202.18,202.14,10.54512035]
[1753188713938,0.68,202.17,202.14,10.54512035]
[1753188714365,0.68,202.16,202.13,10.54512035]
[1753188714559,0.68,202.15,202.11,10.54512035]
[1753188714758,10.54512035,202.12,202.03,10.54512035]
[1753188714960,26.68,202.14,202.04,10.54512035]
[1753188714961,28.00980432,202.11,202.04,10.54512035]
[1753188715264,28.00980432,202.11,202.02,2.54430297]
[1753188715265,0.68,202.1,202.06,10.54512035]
[1753188715565,16.78468397,202.06,201.92,0.49524564]
[1753188715765,32.187,202.08,202.04,10.54512035]
[1753188715968,0.68,202.07,202.05,10.54512035]
[1753188716148,0.68,202.07,202.04,10.54512035]
[1753188716344,0.68,202.1,201.95,16.78468397]
[1753188716550,7.1344,202.14,202.02,10.54512035]
[1753188716769,27.32980432,202.13,202.07,10.54512035]
[1753188716959,11.22512035,202.12,202.06,10.54512035]
[1753188717162,11.22512035,202.12,202.03,0.49497599]
[1753188717163,0.68,202.12,202.03,0.49497599]
[1753188717363,4.9478007,202.11,202.06,10.54512035]
[1753188717569,0.68,202.15,202.1,10.54512035]
[1753188717779,21.73101626,202.17,202.11,10.54512035]
[1753188717970,0.68,202.14,202.1,10.54512035]
[1753188718452,0.68,202.13,202.08,10.54512035]
[1753188718656,0.68,202.13,202.03,0.49497599]
[1753188718657,0.68,202.13,202.1,10.54512035]
[1753188719154,16.17145264,202.17,202.11,10.54512035]
[1753188719353,5.62633229,202.17,202.12,10.54512035]
[1753188719671,0.68,202.16,202.12,10.54512035]
[1753188719870,0.68,202.15,202.12,10.54512035]
[1753188720068,1.7261,202.18,202.08,4.94853523]
[1753188720069,1.7261,202.18,202.14,10.54512035]
[1753188720379,26.0,202.07,201.9,2.54581518]
[1753188720549,26.0,202.03,201.95,10.54512035]
[1753188720743,26.0,202.03,201.91,30.49527016]
[1753188720744,0.68,202.02,201.91,30.0]
[1753188720980,0.68,202.02,201.92,0.49524564]
[1753188721180,4.45898556,202.26,201.92,0.49524564]
[1753188721181,0.68,202.07,201.92,0.49524564]
[1753188721357,12.37344889,202.05,201.95,10.54512035]
[1753188721559,24.74103562,202.1,201.91,4.95262609]
[1753188721560,10.54512035,202.0,201.91,4.95262609]
[1753188721752,0.68,201.99,201.94,10.54512035]
[1753188721953,0.68,201.99,201.92,0.49524564]
[1753188722150,0.68,201.99,201.95,10.54512035]
[1753188722470,0.68,201.98,201.9,0.4952947]
[1753188722769,0.68,201.98,201.93,10.54512035]
[1753188723013,0.68,201.98,201.9,0.4952947]
[1753188723014,0.68,201.98,201.94,10.54512035]
[1753188723482,6.3732,202.01,201.95,5.44689279]
[1753188723692,4.94903856,202.06,201.95,5.44689279]
[1753188723693,0.68,202.06,202.0,10.54512035]
[1753188723987,11.22512035,202.06,201.99,10.54512035]
[1753188724162,10.54512035,202.03,201.9,0.4952947]
[1753188724477,10.54512035,202.03,201.96,10.54512035]
[1753188724649,0.68,202.02,201.97,10.54512035]
[1753188725067,0.68,202.01,201.97,10.54512035]
[1753188725269,0.68,202.0,201.94,10.57512035]
[1753188725465,10.54512035,201.97,201.94,0.03]
[1753188725671,0.68,201.96,201.94,0.03]
[1753188725978,11.22512035,201.96,201.94,0.03]
[1753188726164,0.68,201.95,201.94,0.03]
[1753188726371,11.22512035,201.95,201.94,0.03]
[1753188726568,0.68,201.95,201.94,0.03]
[1753188727072,0.68,202.0,201.94,0.03]
[1753188727456,0.68,202.0,201.94,15.52706192]
[1753188727652,10.54512035,201.95,201.94,0.03]
[1753188727852,16.78468397,201.94,201.82,0.49549103]
[1753188728061,10.54512035,201.92,201.85,15.52926371]
[1753188728255,10.54512035,201.88,201.85,0.03]
[1753188728455,10.54512035,201.87,201.85,0.03]
[1753188728683,0.68,201.91,201.85,15.52926315]
[1753188728889,0.68,201.91,201.85,4.9841428]
[1753188729054,0.68,201.91,201.87,10.54512035]
[1753188729253,10.54512035,201.93,201.85,4.9841428]
[1753188729470,0.68,201.9,201.86,10.54512035]
[1753188729756,0.68,201.89,201.85,10.57512035]
[1753188729958,0.68,201.88,201.85,0.03]
[1753188730391,0.68,201.87,201.85,0.03]
[1753188730873,0.68,201.86,201.85,0.03]
[1753188731084,11.22512035,201.9,201.85,0.03]
[1753188731288,0.68,201.9,201.85,0.03]
[1753188731456,0.68,201.89,201.85,10.57512035]
[1753188731660,0.68,201.88,201.85,0.03]
[1753188731959,27.32980432,201.86,201.85,0.03]
[1753188732481,0.68,201.86,201.85,0.03]
[1753188732786,0.68,201.89,201.85,10.57512035]
[1753188732956,0.68,201.89,201.86,10.54512035]
[1753188733157,0.68,201.88,201.85,10.57512035]
[1753188734155,0.68,201.87,201.85,10.57512035]
[1753188734463,0.68,201.91,201.86,10.54512035]
[1753188734671,0.68,201.91,201.89,10.54512035]
[1753188734861,0.68,201.91,201.85,0.03]
[1753188734862,0.68,201.9,201.85,10.57512035]
[1753188735264,0.68,201.89,201.85,0.03]
[1753188735599,32.283242,201.88,201.85,0.03]
[1753188735879,32.283242,201.88,201.73,0.1]
[1753188735880,26.0,201.83,201.73,0.1]
[1753188736056,10.54512035,201.81,201.75,10.54512035]
[1753188736260,6.5282,201.83,201.73,0.1]
[1753188736261,6.5282,201.83,201.78,10.54512035]
[1753188736576,0.68,201.82,201.77,10.54512035]
[1753188736777,0.68,201.81,201.73,5.55266471]
[1753188736979,0.68,201.81,201.77,10.54512035]
[1753188737283,0.68,201.81,201.73,5.05695262]
[1753188737284,1.5893,201.87,201.8,10.54512035]
[1753188737458,0.69,201.91,201.86,10.54512035]
[1753188737660,0.69,201.9,201.88,10.54512035]
[1753188738003,4.95221116,201.93,201.85,10.54512035]
[1753188738004,0.69,201.89,201.85,10.54512035]
[1753188738184,0.69,201.88,201.86,10.54512035]
[1753188738386,0.69,201.87,201.84,10.54512035]
[1753188738690,16.78468397,201.88,201.77,0.49561381]
[1753188738861,10.54512035,201.89,201.82,10.54512035]
[1753188738862,0.69,201.86,201.82,10.54512035]
[1753188739054,2.58548387,201.89,201.78,30.95567953]
[1753188739260,2.58548387,201.89,201.88,10.54512035]
[1753188739481,0.69,201.92,201.88,10.54512035]
[1753188739654,0.69,201.91,201.89,10.54512035]
[1753188739857,0.69,201.9,201.89,10.54512035]
[1753188740060,0.69,201.9,201.84,0.49544193]
[1753188740259,0.69,201.95,201.89,10.54512035]
[1753188740475,0.69,201.95,201.91,10.54512035]
[1753188740772,0.69,201.94,201.85,0.49541738]
[1753188740975,0.69,201.94,201.92,10.54512035]
[1753188741164,0.69,201.97,201.85,0.49541738]
[1753188741379,0.69,201.97,201.92,10.54512035]
[1753188741581,0.69,201.96,201.87,26.0]
[1753188741789,49.30110979,202.0,201.95,10.54512035]
[1753188741988,49.30110979,202.0,201.96,10.54512035]
[1753188742299,0.69,201.99,201.89,17.83149239]
[1753188742471,0.69,201.99,201.96,10.54512035]
[1753188743372,48.61114586,202.0,201.89,5.44851156]
[1753188743605,38.21,201.99,201.94,10.54512035]
[1753188743904,6.0806,202.0,201.97,10.54512035]
[1753188744082,2.2663,202.02,201.93,4.95205086]